{"text_format":"1","workbook":"xlsx","n_sheets":2,"sheets":["Viatura","Alerta"],"not_rendered":{"charts":0,"images":2,"macros":1,"external_links":0,"defined_names":2,"comments":0,"pivot_tables":0},"unopened":[],"bounds":{"document_bytes":16777216,"sheet_cells":100000,"rows_first":2000,"rows_last":500,"rows_between":2000,"halvings":0,"cell_chars":16384,"cell_head_chars":4096},"cells_cut":0,"cells_raw":0,"read":"whole","date_system":"1900"}

{"sheet":"Viatura","index":0,"n_rows":81,"n_cols":22,"rows_kept":81,"cut":false,"hidden":true,"merged":[[22,1,22,5],[0,1,0,13],[1,1,2,13],[4,2,4,9],[5,2,5,9],[7,1,7,13],[11,9,11,13],[15,1,15,5],[17,1,17,5],[19,1,19,5],[21,1,21,5],[9,9,9,13],[61,1,61,13],[23,1,23,5],[24,1,24,5],[25,1,25,5],[27,1,27,5],[29,1,29,5],[30,1,30,13],[44,1,44,14],[54,1,56,13],[59,1,59,13],[60,1,60,13],[37,1,38,11],[35,1,35,9],[33,1,33,9],[62,5,62,8],[65,1,65,5],[76,3,76,9],[79,1,79,14],[80,1,80,14]]}
[null,null,null,null,null,null,null,null,null,null,null,null,null,null,null,null,null,null,"Continente e Região Autónoma da Madeira","Sim","Viaturas ligeiras de passageiros e de mercadorias (n.º 3 do artigo 88.º do CIRC)"]
[null,"Simulador - Tributações autónomas - Viatura 2023",null,null,null,null,null,null,null,null,null,null,null,null,null,null,null,null,"Região Autónoma dos Açores","Não","Híbrida plug-in (n.º 18 do artigo 88.º do CIRC)*"]
[null,null,null,null,null,null,null,null,null,null,null,null,null,null,null,null,null,null,null,null,"Movida a gás natural veicular (GNV) (n.º 18 do artigo 88.º do CIRC)"]
[null,null,null,null,null,null,null,null,null,null,null,null,null,null,null,null,null,null,null,null,"Movida exclusivamente a energia elétrica (n.º 20 do artigo 88.º do CIRC)"]
[null,"Nome:","Nome da Empresa"]
[null,"NIF:","NIF da Empresa"]
[]
[null,"Dados para simulação"]
[]
[null,"Localização",null,null,null,null,null,null,null,"Continente e Região Autónoma da Madeira",null,null,null,null,null,null,null,{"$f":"IF(J10=\"Continente e Região Autónoma da Madeira\",1,2)","v":1}]
[]
[null,"Combustível",null,null,null,null,null,null,null,"Viaturas ligeiras de passageiros e de mercadorias (n.º 3 do artigo 88.º do CIRC)"]
[]
[null,"Custo de aquisição da viatura",null,null,null,null,null,null,null,null,null,null,null,0,null,null,null,null,{"$f":"IF(N18=0,0,(N14-N16)/N18)","v":0}]
[]
[null,"Valor residual",null,null,null,null,null,null,null,null,null,null,null,0]
[]
[null,"Vida útil (período de depreciação contabilística)",null,null,null,null,null,null,null,null,null,null,null,0]
[]
[null,"Despesa com a viatura"]
[]
[null,"Combustível",null,null,null,null,null,null,null,null,null,null,null,0]
[]
[null,"Portagens e estacionamento",null,null,null,null,null,null,null,null,null,null,null,0]
[]
[null,"Seguro",null,null,null,null,null,null,null,null,null,null,null,0]
[]
[null,"Oficinas",null,null,null,null,null,null,null,null,null,null,null,0]
[]
[null,"Outros",null,null,null,null,null,null,null,null,null,null,null,0,null,null,null,null,{"$f":"N22+N24+N26+N28+N30","v":0}]
[]
[null,"Teve prejuízos fiscais?",null,null,null,null,null,null,null,null,null,null,null,"Não",null,null,null,null,{"$f":"S30+S14","v":0}]
[]
[null,"O sujeito passivo está no primeiro ano de atividade ou num dos dois períodos seguintes?",null,null,null,null,null,null,null,null,null,null,null,"Não"]
[]
[null,"Teve lucro tributável em um dos três períodos de tributação anteriores?",null,null,null,null,null,null,null,null,null,null,null,"Sim",null,null,null,{"$f":"IF(AND(N36=\"Sim\",N38=\"Sim\"),\"Sim\",\"Não\")","v":"Sim"}]
[]
[null,"Foram entregues a declaração periódica de rendimento (Mod. 22) e a declaração anual da informação contabílística e fiscal relativas aos dois períodos de tributação anteriores, tenham sido cumpridas nos termos neles previstos?",null,null,null,null,null,null,null,null,null,null,null,"Sim",null,null,null,{"$f":"IF(AND(J12=U1,R10=1),1,IF(AND(J12=U2,R10=1),2,IF(AND(J12=U3,R10=1),2,IF(AND(J12=U4,R10=1),3,IF(AND(J12=U1,R10=2),4,IF(AND(J12=U2,R10=2),5,IF(AND(J12=U3,R10=2),5,IF(AND(J12=U4,R10=2),6,\"\"))))))))","v":1},1,2,3,{"$f":"IF(N14<27500,1,IF(AND(N14>=27500,N14<35000),2,IF(N14>=35000,3,\"\")))","v":1}]
[null,null,null,null,null,null,null,null,null,null,null,null,null,null,null,null,null,1,0.1,0.27500000000000002,0.35]
[null,null,null,null,null,null,null,null,null,null,null,null,null,null,null,null,null,2,2.5000000000000001E-2,7.4999999999999997E-2,0.15]
[null,null,null,null,null,null,null,null,null,null,null,null,null,null,null,null,null,3,0,0,{"$f":"IF(N14>62500,0.1,0)","v":0}]
[null,null,null,null,null,null,null,null,null,null,null,null,null,null,null,null,null,4,{"$f":"(S39*70)/100","v":7.0000000000000007E-2},0.1925,0.245]
[null,null,null,null,null,null,null,null,null,null,null,null,null,null,null,null,null,5,1.7500000000000002E-2,5.2499999999999998E-2,0.105]
[null,null,null,null,null,null,null,null,null,null,null,null,null,null,null,null,null,6,{"$f":"S41","v":0},0,{"$f":"IF(N14>62500,0.07,0)","v":0}]
[null,"Resultado",null,null,null,null,null,null,null,null,null,null,null,null,null,null,null,"Taxa",{"$f":"IF(AND(R38=1,V38=1),S39,IF(AND(R38=1,V38=2),T39,IF(AND(R38=1,V38=3),U39,IF(AND(R38=2,V38=1),S40,IF(AND(R38=2,V38=2),T40,IF(AND(R38=2,V38=3),U40,IF(AND(R38=3,V38=1),S41,IF(AND(R38=3,V38=2),T41,IF(AND(R38=3,V38=3),U41,IF(AND(R38=4,V38=1),S42,IF(AND(R38=4,V38=2),T42,IF(AND(R38=4,V38=3),U42,IF(AND(R38=5,V38=1),S43,IF(AND(R38=5,V38=2),T43,IF(AND(R38=5,V38=3),U43,IF(AND(R38=6,V38=1),S44,IF(AND(R38=6,V38=2),T44,IF(AND(R38=6,V38=3),U44))))))))))))))))))","v":0.1},{"$f":"IF(N32=\"Não\",S45,IF(AND(N32=\"Sim\",R36=\"Sim\"),S45,IF(R10=1,(S45+0.1),(S45+0.07))))","v":0.1}]
[]
[]
[]
[null,"Depreciação anual da viatura",null,null,null,null,null,null,null,null,null,null,null,{"$f":"S14","v":0},null,null,null,null,{"$f":"S32*T45","v":0}]
[]
[null,"Despesas + Depreciação",null,null,null,null,null,null,null,null,null,null,null,{"$f":"S32","v":0}]
[]
[null,{"$f":"IF(S32>0,_xlfn.CONCAT(\"Tributações Autónomas (\",T45*100,\"%)\"),\"Tributações Autónomas\")","v":"Tributações Autónomas"},null,null,null,null,null,null,null,null,null,null,null,{"$f":"S49","v":0}]
[]
[]
[]
[]
[]
[]
[null,"O Orçamento do Estado 2023 introduziu a aplicação de tributação autónoma de 10% para as viaturas movidas exclusivamente a energia elétrica com valor de aquisição superior a 62.500 euros (valor sem IVA se dedutível)."]
[null,"*Cuja bateria possa ser carregada através de ligação à rede elétrica e que tenham uma autonomia mínima, no modo elétrico, de 50 km e emissões oficiais inferiores a 50 gCO2/km."]
[]
[]
[]
[]
[]
[]
[]
[]
[]
[]
[]
[]
[]
[]
[]
[null,"Data de simulação",null,{"$f":"TODAY()","v":"2023-04-26"}]
[]
[]
[null,"v 1.0"]
[null,"A Ordem não se responsabiliza por valores incorretos apurados, resultantes de erros na introdução de dados ou na interpretação das normas aplicáveis."]

{"sheet":"Alerta","index":1,"n_rows":13,"n_cols":2,"rows_kept":13,"cut":false,"hidden":false,"merged":[[0,1,0,6],[1,1,1,6],[5,1,5,6],[12,1,13,5]]}
[]
[null,"Simulador"]
[]
[]
[]
[null,"Para utilizar o simulador deverá ativar as macros."]
[]
[]
[]
[]
[]
[]
[null,"Ficheiro compatível apenas com versões posteriores a Microsoft Office Excel 2007 e em formato Livro com Permissão para Macros do Excel (*.xlsm)"]